Workbook

Sheet Sheet1
A1: 连云港市华茂绿化工程有限公司1月份月度计划物资采购询价报价单
A3: 拟采购计划（申购单位填写） | J3: （实际采购情况）采购单位填写
A4: 序号 | B4: 物品 名称 | C4: 规格 型号 | D4: 单位 | E4: 数量 | F4: 控制单价（元） | G4: 控制总价 （元） | H4: 单价（含运费、增值税专票）（元） | I4: 总价（含运费、增值税专票） （元) | J4: 备注 | K4: 单位 | L4: 联系人电话
B5: 冲击钻电池 | C5: 博世18V/2.0AH | D5: 个 | E5: 1 | F5: 300 | G5: =E5*F5 -> 300 | K5: 裕达毛舒舒 | L5: 18961338911
B6: 电工胶布 | C6: 四种颜色 | D6: 个 | E6: 80 | F6: 3 | G6: =E6*F6 -> 240 | J6: 每种颜色20个 | K6: 养殖 | L6: 伏广波 17768489922
B7: 吸顶灯芯 | C7: 80W LED | D7: 盏 | E7: 4 | F7: 40 | G7: =E7*F7 -> 160
B8: 角磨机 | C8: 东城牌 锂电池 | D8: 套 | E8: 1 | F8: 260 | G8: =E8*F8 -> 260
B9: 卷尺 | C9: 5米 | D9: 个 | E9: 2 | F9: 10 | G9: 20
B10: 除锈剂 | D10: 瓶 | E10: 6 | F10: 15 | G10: 90 | K10: 盐钙 | L10: 于广华 13812340612
B11: 砂轮片 | D11: 盒 | E11: 1 | F11: 60 | G11: 60
B12: 东成牌手电钻 | D12: 套 | E12: 1 | F12: 800 | G12: 800 | J12: 配一块电池、钻头
B13: 黄油枪 | D13: 套 | E13: 1 | F13: 60 | G13: 60 | J13: 配油嘴
B14: 铲刀 | D14: 把 | E14: 2 | F14: 10 | G14: =F14*E14 -> 20 | K14: 益丰 | L14: 徐明磊 19901572122
B15: 防冻液 | D15: 瓶 | E15: 2 | F15: 13 | G15: =F15*E15 -> 26
B16: 牛皮纸袋 | C16: 大 | D16: 个 | E16: 200 | F16: 0.2 | G16: =F16*E16 -> 40
B17: 毛巾 | D17: 条 | E17: 10 | F17: 5 | G17: =F17*E17 -> 50
B18: 180盆垫 | D18: 个 | E18: 30 | F18: 1.5 | G18: =F18*E18 -> 45
B19: 240盆垫 | D19: 个 | E19: 30 | F19: 1.5 | G19: =F19*E19 -> 45
B20: 塑料扫把 | D20: 个 | E20: 30 | F20: 15 | G20: =E20*F20 -> 450 | K20: 大浦 | L20: 杨卿 13775585522
B21: 高粱扫把 | D21: 把 | E21: 30 | F21: 15 | G21: 450
B22: 插座 | C22: 5孔 | D22: 个 | E22: 30 | F22: 20 | G22: 600
B23: 大扫把 | D23: 把 | E23: 50 | F23: 20 | G23: 1000
B24: 塑料簸箕 | D24: 个 | E24: 15 | F24: 15 | G24: 225
B25: 簸箕 | D25: 个 | E25: 15 | F25: 15 | G25: 225
B26: 塑料簸箕 | D26: 个 | E26: 15 | F26: 15 | G26: 225
B27: 垃圾袋 | C27: 1米*1.2 | D27: 个 | E27: 400 | F27: 0.6 | G27: 240
B28: 垃圾袋 | C28: 80公分*60/50 | D28: 包 | E28: 200 | F28: 0.3 | G28: 60
B29: 洗衣粉 | D29: 袋 | E29: 5 | F29: 10 | G29: 50
B30: 垃圾包 | D30: 个 | E30: 15 | F30: 8 | G30: 120
B31: 垃圾钳 | D31: 个 | E31: 50 | F31: 20 | G31: 1000
B32: 大扫把 | C32: 不带棍 | D32: 把 | E32: 50 | F32: 20 | G32: 1000
B33: 反光条 | D33: 卷 | E33: 5 | F33: 10 | G33: 50
B34: 自喷漆 | C34: 灰色 | D34: 个 | E34: 6 | F34: 10 | G34: 60
B35: 自喷漆 | C35: 大红色 | D35: 个 | E35: 6 | F35: 10 | G35: 60
B36: 毛巾 | D36: 条 | E36: 5 | F36: 2 | G36: 10
B37: 小刚锨 | D37: 个 | E37: 10 | F37: 15 | G37: 150
B38: 黄油 | D38: 桶 | E38: 3 | F38: 40 | G38: =E38*F38 -> 120 | L38: 任文静 15161342669
B39: 后视镜 | C39: DN50 | D39: 付 | E39: 3 | F39: 15 | G39: 45
B40: 手动阀门 | D40: 个 | E40: 5 | F40: 15 | G40: 75
B41: 护栏车防水罩皮 | C41: 1.6*1.2米 | D41: 块 | E41: 1 | F41: 20 | G41: 20
B42: 筛网 | D42: 次 | E42: 1 | F42: 700 | G42: 700
B43: 剪刀 | D43: 把 | E43: 8 | F43: 8 | G43: 64
B44: 美工刀 | D44: 把 | E44: 2 | F44: 10 | G44: 20
B45: 刀片 | D45: 盒 | E45: 1 | F45: 10 | G45: 10
B46: 马桶塞 | D46: 把 | E46: 3 | F46: 10 | G46: 30
B47: 马桶刷子 | D47: 把 | E47: 2 | F47: 10 | G47: 20
B48: 锁 | D48: 个 | E48: 3 | F48: 30 | G48: 90 | L48: 房金鹤 13851282408
B49: 防水补墙膏 | D49: 斤 | E49: 10 | F49: 6 | G49: =SUM(E49*F49) -> 60 | J49: 水管维修 | L49: 尤金 15366660107
B50: 海绵拖把 | D50: 只 | E50: 2 | F50: 25 | G50: 50 | J50: 创智绿园公厕用 | K50: 环卫 | L50: 王斌 15205136482
B51: 布拖把 | D51: 把 | E51: 2 | F51: 10 | G51: =F51*E51 -> 20 | J51: 创智绿园公厕用
B52: 洁厕剂 | D52: 瓶 | E52: 8 | F52: 5 | G52: 40 | J52: 创智绿园公厕用
B53: 84消毒液 | D53: 瓶 | E53: 8 | F53: 5 | G53: 40 | J53: 创智绿园公厕用
B54: 厕所用小刷子 | D54: 只 | E54: 4 | F54: 5 | G54: 20 | J54: 创智绿园公厕用
B55: 垃圾袋 | D55: 卷 | E55: 10 | F55: 4 | G55: 40 | J55: 创智绿园公厕用
B56: 洗衣粉 | D56: 袋 | E56: 4 | F56: 10 | G56: 40 | J56: 创智绿园公厕用
B57: 橡胶手套 | C57: 大号 | D57: 副 | E57: 2 | F57: 5 | G57: 10 | J57: 创智绿园公厕用
B58: 小清扫车滚盘把 | D58: 套 | E58: 1 | F58: 600 | G58: 600 | J58: 242大道班清扫车用（绿鑫）
B59: 胎压表 | D59: 只 | E59: 1 | F59: 65 | G59: 65 | J59: 铲车用
B60: 吹风枪 | D60: 只 | E60: 1 | F60: 25 | G60: 25 | J60: 东方大道一班清扫车用
B61: 外胎 | C61: 6.75-12 | D61: 只 | E61: 2 | F61: 30 | G61: 60 | J61: 东方大道一班和新光路班三轮垃圾车用
B62: 铁锨 | D62: 把 | E62: 5 | F62: 30 | G62: 150 | J62: 铲雪除冰用
B63: 保洁三轮车后飞轮 | C63: 内径3.5厘米20齿 | D63: 套 | E63: 1 | F63: 15 | G63: 15 | J63: 新海保洁班保洁三轮车用
B64: 内外胎 | C64: 6.75-12 | D64: 套 | E64: 2 | F64: 30 | G64: 60 | J64: 242大道班组三轮垃圾车用打气用
B65: 气 筒 | D65: 把 | E65: 1 | F65: 30 | G65: 30 | J65: 242大道班组三轮车打气用
B66: 洗车拖把 | D66: 个 | E66: 1 | F66: 50 | G66: 50 | J66: 环卫分公司垃圾清运
B67: 水带 | C67: DN110/DN160 | D67: m | E67: 200 | F67: 5 | G67: =E67*F67 -> 1000 | K67: 上元 | L67: 朱文江 13655135862
B68: LDE灯 | C68: 60*60cm | D68: 个 | E68: 6 | F68: 45 | G68: =F68*E68 -> 270 | J68: 市政班组 | K68: 翔立 | L68: 刘金刚 13851269436
B69: 尿素 | D69: 桶 | E69: 2 | F69: 50 | G69: =F69*E69 -> 100 | J69: 市政班组
B70: 内六角扳手 | D70: 套 | E70: 1 | F70: 35 | G70: 35 | J70: 市政班组
B71: 螺栓松动剂 | D71: 瓶 | E71: 10 | F71: 15 | G71: 150 | J71: 市政班组
G72: =SUM(G5:G71) -> 12315
